bitfinex-derivatives/quotes_SOLF0:USTF0_20260204
["timestamp","ask_amount","ask_price","bid_price","bid_amount"]
[1770230419295,151.3912,92.671,92.36,455.7018]
[1770230419296,50.59013924,92.687,92.51,8.20440228]
[1770230419496,50.59013924,92.659,92.53,8.20440228]
[1770230419798,50.59013924,92.689,92.54,8.20440228]
[1770230419994,50.59013924,92.689,92.556,151.5785]
[1770230420195,50.59013924,92.687,92.56,8.20440228]
[1770230420688,53.65387611,92.659,92.518,32.55]
[1770230421002,53.65387611,92.659,92.53,8.20440228]
[1770230421193,53.65387611,92.659,92.5,8.20440228]
[1770230421388,53.65470753,92.639,92.52,9.748]
[1770230421597,53.65470753,92.639,92.52,8.20440228]
[1770230421993,53.65470753,92.639,92.491,151.684]
[1770230421994,53.65470753,92.639,92.494,151.6799]
[1770230422199,53.65470753,92.639,92.493,151.6809]
[1770230422488,53.65470753,92.639,92.52,31.36730708]
[1770230422688,53.77137399,92.667,92.529,151.6224]
[1770230422892,53.77137399,92.667,92.52,31.36730708]
[1770230423091,53.77137399,92.667,92.49,31.36730708]
[1770230423294,53.77137399,92.639,92.46,31.36730708]
[1770230423490,53.77210404,92.602,92.393,178.15439557]
[1770230423788,53.77210404,92.579,92.42,151.8019]
[1770230423990,53.77275431,92.577,92.42,31.36730708]
[1770230424191,53.77275431,92.559,92.405,151.8262]
[1770230424387,53.77275431,92.559,92.41,31.36730708]
[1770230424590,53.26670618,92.549,92.393,178.15439557]
[1770230424997,53.26670618,92.543,92.393,178.15439557]
[1770230425595,151.3794,92.678,92.462,151.7319]
[1770230425898,151.0879,92.857,92.67,31.36730708]
[1770230426097,151.0674,92.87,92.73,31.36730708]
[1770230426305,150.9827,92.922,92.706,151.3324]
[1770230426496,43.47212738,92.947,92.77,31.36730708]
[1770230426696,43.47212738,92.986,92.775,151.2198]
[1770230426996,43.47212738,92.986,92.797,151.1846]
[1770230427205,43.47212738,92.935,92.75,31.36730708]
[1770230427497,43.47212738,92.935,92.692,454.0695]
[1770230427498,43.47212738,92.935,92.792,151.1918]
[1770230427699,43.47212738,92.935,92.81,31.36730708]
[1770230427902,43.47212738,92.935,92.794,151.1896]
[1770230428098,43.47212738,92.935,92.794,151.1885]
[1770230428299,43.47212738,92.935,92.766,151.2351]
[1770230428300,48.96425821,92.967,92.826,151.1367]
[1770230428502,48.96425821,92.967,92.797,151.1841]
[1770230428803,48.96425821,92.967,92.788,151.199]
[1770230428804,48.96425821,93.109,92.869,151.0675]
[1770230429000,48.96425821,93.084,92.9,182.38340708]
[1770230429193,48.96425821,93.079,92.91,31.36730708]
[1770230429394,19.86432276,93.079,92.884,151.042]
[1770230429599,150.6616,93.12,92.92,31.36730708]
[1770230429804,150.6616,93.12,92.855,151.0898]
[1770230429805,9.6896,93.079,92.846,151.1049]
[1770230430000,150.7559,93.062,92.85,31.36730708]
[1770230430305,150.7559,93.062,92.83,31.36730708]
[1770230430306,31.36730708,93.02,92.83,31.36730708]
[1770230430501,150.6357,93.136,92.98,31.36730708]
[1770230430703,150.6357,93.136,92.864,151.076]
[1770230430704,31.36730708,93.19,92.959,150.9213]
[1770230430904,150.5172,93.209,92.977,150.8918]
[1770230431101,21.6,93.218,92.989,150.8715]
[1770230431298,21.6,93.218,93.03,31.36730708]
[1770230431599,36.06949382,93.19,93.01,31.36730708]
[1770230431801,36.06949382,93.168,93.01,31.36730708]
[1770230432005,36.06949382,93.154,92.98,31.36730708]
[1770230432204,36.06949382,93.152,92.97,31.36730708]
[1770230432400,33.58057584,93.092,92.875,151.072]
[1770230432702,33.58057584,93.055,92.88,31.36730708]
[1770230432905,33.58057584,93.0,92.84,31.36730708]
[1770230433200,33.58057584,93.0,92.747,151.2816]
[1770230433201,29.46057584,92.987,92.81,31.36730708]
[1770230433405,150.7975,93.045,92.812,151.1748]
[1770230433598,150.7524,93.073,92.85,31.36730708]
[1770230433795,150.736,93.083,92.792,151.2081]
[1770230433796,150.8352,93.022,92.792,151.2081]
[1770230433999,150.8388,93.02,92.83,31.36730708]
[1770230434197,31.36730708,93.03,92.753,151.2705]
[1770230434198,150.885,92.991,92.753,151.2705]
[1770230434399,150.8595,93.007,92.79,31.36730708]
[1770230434400,150.8963,92.984,92.79,31.36730708]
[1770230434600,150.9175,92.971,92.79,31.36730708]
[1770230434804,150.9814,92.932,92.77,31.36730708]
[1770230435000,150.9987,92.921,92.77,31.36730708]
[1770230435199,150.9489,92.952,92.712,9.7289]
[1770230435200,150.9487,92.952,92.728,151.312]
[1770230435498,31.36730708,92.97,92.7,151.358]
[1770230435499,29.46632778,92.951,92.79,31.36730708]
[1770230435706,29.46632778,92.925,92.76,31.36730708]
[1770230436004,29.46632778,92.952,92.737,151.2973]
[1770230436204,150.7782,93.057,92.841,3.09804657]
[1770230436405,150.7779,93.058,92.871,8.77826818]
[1770230436599,150.8027,93.042,92.871,8.77826818]
[1770230436800,9.6954,93.032,92.871,8.77826818]
[1770230437005,150.8532,93.011,92.871,8.77826818]
[1770230437209,150.8535,93.011,92.871,8.77826818]
[1770230437405,9.6977,93.011,92.871,8.77826818]
[1770230437605,31.36730708,93.03,92.871,8.77826818]
[1770230437803,150.7913,93.049,92.871,8.77826818]
[1770230437999,150.7959,93.046,92.881,7.82488296]
[1770230438204,27.19238971,93.009,92.881,7.82488296]
[1770230438400,150.8432,93.017,92.848,8.15944512]
[1770230438401,27.19238971,92.992,92.848,8.15944512]
[1770230438605,27.19238971,92.98,92.85,31.36730708]
[1770230438806,27.19238971,93.039,92.851,8.15944512]
[1770230439006,27.19238971,93.036,92.851,8.15944512]
[1770230439207,27.19238971,93.018,92.851,8.15944512]
[1770230439402,27.19238971,93.01,92.851,8.15944512]
[1770230439810,27.19238971,93.005,92.861,7.07027484]
[1770230440012,27.19238971,92.984,92.861,7.07027484]
[1770230440509,27.19238971,92.977,92.861,7.07027484]
[1770230441011,27.19238971,92.97,92.861,7.07027484]
[1770230441210,27.19238971,92.967,92.828,6.02710407]
[1770230442109,27.19238971,92.967,92.831,5.05874599]
[1770230442513,36.89478971,92.966,92.831,5.05874599]
[1770230442816,27.19238971,92.965,92.831,5.05874599]
[1770230443004,9.7046,92.945,92.831,5.05874599]
[1770230443208,27.19238971,92.987,92.831,5.05874599]
[1770230443405,452.4663,93.03,92.831,5.05874599]
[1770230443406,178.14998971,92.947,92.831,5.05874599]
[1770230443605,27.19238971,92.926,92.771,4.58360584]
[1770230443816,150.9439,92.955,92.771,4.58360584]
[1770230443817,27.19238971,92.914,92.771,4.58360584]
[1770230444011,150.9153,92.973,92.771,4.58360584]
[1770230444012,27.19238971,92.912,92.771,4.58360584]
[1770230444313,27.19238971,92.93,92.801,3.90294917]
[1770230444513,27.19238971,92.915,92.801,3.90294917]
[1770230444813,9.7106,92.887,92.801,3.90294917]
[1770230445415,9.7127,92.867,92.801,3.90294917]
[1770230445611,27.19238971,92.906,92.801,3.90294917]
[1770230445813,27.19238971,92.902,92.801,3.90294917]
[1770230446416,27.19238971,92.882,92.771,2.23949086]
[1770230446612,27.19238971,92.882,92.65,151.4401]
[1770230446613,27.19238971,92.844,92.63,151.4728]
[1770230446916,27.19238971,92.787,92.676,2.23949086]
[1770230447219,27.19238971,92.8,92.645,2.23949086]
[1770230447419,27.19238971,92.8,92.651,1.28523973]
[1770230447616,27.19238971,92.825,92.655,1.28523973]
[1770230448016,27.19238971,92.799,92.655,1.28523973]
[1770230448612,9.7208,92.79,92.655,1.28523973]
[1770230448814,27.19238971,92.789,92.655,1.28523973]
[1770230449211,27.19238971,92.783,92.655,1.28523973]
[1770230449921,27.19238971,92.783,92.563,151.5811]
[1770230449922,27.19238971,92.769,92.59,20.85215646]
[1770230450518,27.19238971,92.756,92.62,20.85215646]
[1770230451113,151.1473,92.83,92.592,151.5346]
[1770230451114,27.19238971,92.787,92.65,20.85215646]
[1770230451519,27.19238971,92.817,92.708,9.7292]
[1770230451718,27.19238971,92.817,92.68,20.85215646]
[1770230452121,27.19238971,92.817,92.689,9.7313]
[1770230452326,27.19238971,92.817,92.68,20.85215646]
[1770230452725,27.19238971,92.817,92.689,9.7313]
[1770230452925,27.19238971,92.817,92.69,20.85215646]
[1770230453128,27.19238971,92.848,92.69,20.85215646]
[1770230453422,27.19238971,92.848,92.72,20.85215646]
[1770230453620,27.19238971,92.848,92.69,20.85215646]
[1770230453821,9.7151,92.844,92.714,9.7287]
[1770230454021,25.94918365,92.844,92.714,9.7287]
[1770230454324,16.2695454,92.833,92.697,9.7305]
[1770230454720,16.2695454,92.833,92.68,20.85215646]
[1770230454919,16.2695454,92.788,92.657,9.7356]
[1770230455226,16.2695454,92.788,92.65,20.85215646]
[1770230456015,9.7236,92.772,92.65,20.85215646]
[1770230456513,151.1795,92.82,92.572,151.576]
[1770230456514,16.2717457,92.753,92.572,151.576]
[1770230456719,16.2717457,92.753,92.6,20.85215646]
[1770230457129,16.2717457,92.739,92.57,20.85215646]
[1770230457327,16.28837817,92.916,92.72,20.85215646]
[1770230457528,16.28837817,92.88,92.754,9.725]
[1770230457726,16.28837817,92.874,92.72,20.85215646]
[1770230457929,16.28837817,92.874,92.661,151.4359]
[1770230457930,16.28837817,92.874,92.69,20.85215646]
[1770230458130,16.28837817,92.821,92.702,9.7308]
[1770230458327,16.28837817,92.821,92.66,20.85215646]
[1770230458520,16.28837817,92.821,92.65,20.85215646]
[1770230458721,16.49184967,92.801,92.65,20.85215646]
[1770230459234,16.49184967,92.799,92.65,20.85215646]
[1770230459533,16.49184967,92.799,92.68,20.85215646]
[1770230459727,26.2193032,92.824,92.709,9.7297]
[1770230460228,16.5017032,92.824,92.724,9.7284]
[1770230460430,16.70475367,92.854,92.68,20.85215646]
[1770230460624,151.1787,92.82,92.65,20.85215646]
[1770230460823,151.1424,92.842,92.65,20.85215646]
[1770230460824,9.7218,92.789,92.684,9.7327]
[1770230461026,151.1782,92.82,92.65,20.85215646]
[1770230461329,151.2278,92.788,92.62,20.85215646]
[1770230461636,20.85215646,92.78,92.62,20.85215646]
[1770230461832,16.70761469,92.757,92.638,9.7373]
[1770230462328,16.70761469,92.757,92.62,20.85215646]
[1770230462538,20.85215646,92.82,92.621,151.4869]
[1770230462730,16.72580764,92.807,92.62,20.85215646]
[1770230463232,16.72580764,92.772,92.604,151.5143]
[1770230463428,16.72580764,92.772,92.62,20.85215646]
[1770230463627,16.72801329,92.733,92.628,9.7376]
[1770230463831,16.72801329,92.733,92.59,20.85215646]
[1770230464230,16.72801329,92.732,92.59,20.85215646]
[1770230464529,16.64531467,92.729,92.56,20.85215646]
[1770230466033,16.65093021,92.695,92.594,9.7412]
[1770230466634,16.67706994,92.693,92.594,9.7412]
[1770230466934,16.67706994,92.693,92.56,20.85215646]
[1770230467328,16.67706994,92.69,92.589,9.7417]
[1770230467526,16.67706994,92.69,92.526,151.6426]
[1770230467527,16.67706994,92.69,92.536,382.28579144]
[1770230467733,16.67706994,92.69,92.588,9.7419]
[1770230468131,16.67706994,92.69,92.56,20.85215646]
[1770230468435,16.68754806,92.687,92.56,20.85215646]
[1770230468632,16.68754806,92.687,92.571,151.5694]
[1770230468832,16.68754806,92.687,92.56,20.85215646]
[1770230469033,16.68754806,92.687,92.6,20.85215646]
[1770230470427,9.7293,92.708,92.609,9.7397]
[1770230470633,16.67761506,92.707,92.6,20.85215646]
[1770230471432,16.68288593,92.691,92.57,20.85215646]
[1770230471839,16.68288593,92.669,92.575,9.7433]
[1770230472035,16.68288593,92.669,92.57,20.85215646]
[1770230472537,16.68288593,92.669,92.589,9.7418]
[1770230472834,16.68288593,92.669,92.57,20.85215646]
[1770230473135,151.3444,92.709,92.5,19.5024]
[1770230473136,16.70250656,92.654,92.54,20.85215646]
[1770230474135,16.70687831,92.623,92.542,9.7467]
[1770230474336,16.70687831,92.623,92.54,20.85215646]
[1770230474834,16.70687831,92.623,92.54,30.59905646]
[1770230475035,16.70687831,92.623,92.54,9.7469]
[1770230475338,16.70524262,92.62,92.54,9.7469]
[1770230475531,16.70524262,92.62,92.527,9.7483]
[1770230475732,16.70524262,92.62,92.51,20.85215646]
[1770230475941,16.70524262,92.591,92.48,20.85215646]
[1770230476738,16.70524262,92.591,92.51,9.7501]
[1770230477139,16.70524262,92.591,92.51,20.85215646]
[1770230478030,16.71286604,92.649,92.54,20.85215646]
[1770230478633,9.7369,92.637,92.552,9.7456]
[1770230478834,16.71286604,92.649,92.552,9.7456]
[1770230479234,16.74856063,92.681,92.508,151.6723]
[1770230479437,16.74856063,92.681,92.58,20.85215646]
[1770230479744,11.23731182,92.643,92.5,10.64596549]
[1770230480041,151.4065,92.671,92.511,10.64596549]
[1770230480235,151.3967,92.677,92.521,10.64596549]
[1770230480434,151.3602,92.699,92.54,10.64596549]
[1770230480634,151.4016,92.674,92.54,10.64596549]
[1770230480842,151.4016,92.674,92.475,151.7268]
[1770230480843,9.7404,92.603,92.511,10.64596549]
[1770230481341,9.7391,92.615,92.532,9.7477]
[1770230481542,19.4675,92.667,92.532,9.7477]
[1770230481737,19.4605,92.7,92.533,10.64596549]
[1770230481938,20.85215646,92.71,92.559,10.64596549]
[1770230482138,151.3624,92.698,92.559,10.64596549]
[1770230482340,151.349,92.706,92.559,10.64596549]
[1770230482538,151.3573,92.701,92.559,10.64596549]
[1770230482737,151.363,92.698,92.559,10.64596549]
[1770230482938,9.7361,92.644,92.562,9.7446]
[1770230483340,20.85215646,92.74,92.562,151.5835]
[1770230483541,20.85215646,92.74,92.571,10.64596549]
[1770230483843,151.2602,92.761,92.571,10.64596549]
[1770230484038,151.2966,92.738,92.571,10.64596549]
[1770230484234,151.2744,92.752,92.571,10.64596549]
[1770230484235,151.3068,92.732,92.571,10.64596549]
[1770230484433,151.2744,92.752,92.6,20.85215646]
[1770230484632,151.2893,92.743,92.607,9.7399]
[1770230485234,21.6,92.832,92.63,29.80410799]
[1770230485440,151.2528,92.765,92.63,29.80410799]
[1770230485640,151.246,92.769,92.63,29.80410799]
[1770230486044,9.7281,92.72,92.637,9.7367]
[1770230486235,151.2243,92.783,92.631,8.95195153]
[1770230486434,151.1935,92.802,92.611,8.95580632]
[1770230486641,151.264,92.758,92.614,8.95580632]
[1770230486838,151.2529,92.765,92.614,8.95580632]
[1770230487047,151.2591,92.761,92.614,8.95580632]
[1770230487246,151.2808,92.748,92.614,8.95580632]
[1770230487437,151.2457,92.77,92.614,8.95580632]
[1770230487438,151.2774,92.75,92.614,8.95580632]
[1770230487640,9.7325,92.678,92.614,8.95580632]
[1770230487943,151.3051,92.733,92.61,20.85215646]
[1770230488344,9.7317,92.686,92.61,20.85215646]
[1770230488540,151.3044,92.734,92.61,20.85215646]
[1770230488748,151.3167,92.726,92.587,8.95580632]
[1770230488936,19.4539,92.731,92.59,8.96129769]
[1770230489441,151.2528,92.765,92.59,8.96129769]
[1770230489442,151.2893,92.743,92.61,20.85215646]
[1770230489642,151.2918,92.741,92.61,20.85215646]
[1770230489833,151.2885,92.743,92.61,20.85215646]
[1770230490033,9.7328,92.675,92.601,9.7405]
[1770230490235,9.7328,92.675,92.59,8.96129769]
[1770230490437,151.3311,92.717,92.59,8.96129769]
[1770230490636,9.7328,92.676,92.592,9.7414]
[1770230490837,151.3125,92.729,92.59,8.96129769]
[1770230491040,151.3597,92.7,92.562,8.95455873]
[1770230491240,9.7363,92.642,92.567,9.7441]
[1770230491447,151.3785,92.688,92.562,8.95455873]
[1770230491647,19.463,92.688,92.563,9.7445]
[1770230491848,151.3874,92.683,92.562,8.95455873]
[1770230492041,151.3836,92.685,92.562,8.95455873]
[1770230492250,151.3836,92.685,92.466,151.7403]
[1770230492251,151.4117,92.668,92.536,8.95455873]
[1770230492548,151.3701,92.693,92.536,8.95455873]
[1770230492841,151.4095,92.669,92.536,8.95455873]
[1770230493043,161.29605964,92.691,92.536,8.95455873]
[1770230493244,151.3872,92.683,92.536,8.95455873]
[1770230493548,9.7383,92.623,92.554,9.7454]
[1770230493748,151.3831,92.685,92.536,8.95455873]
[1770230493749,151.4231,92.661,92.536,8.95455873]
[1770230493948,9.92245964,92.669,92.541,8.92056645]
[1770230494143,151.3831,92.685,92.541,8.92056645]
[1770230494343,151.3739,92.691,92.541,8.92056645]
[1770230494344,151.3753,92.69,92.541,8.92056645]
[1770230494541,151.3821,92.686,92.541,8.92056645]
[1770230494842,151.4178,92.664,92.541,8.92056645]
[1770230495038,9.7395,92.611,92.544,9.7465]
[1770230495237,9.92245964,92.682,92.545,8.87714253]
[1770230495438,9.92245964,92.714,92.571,8.87714253]
[1770230495642,151.3411,92.711,92.571,8.87714253]
[1770230495844,151.3428,92.71,92.571,8.87714253]
[1770230496045,9.736,92.645,92.583,9.7424]
[1770230496538,9.7349,92.656,92.583,9.7424]
[1770230496739,9.92245964,92.688,92.573,9.7434]
[1770230496944,9.92245964,92.669,92.57,20.85215646]
[1770230497146,9.7375,92.631,92.571,8.85444125]
[1770230497346,9.7375,92.631,92.474,151.727]
[1770230497347,7.58949241,92.713,92.64,20.85215646]
[1770230497541,7.58949241,92.713,92.63,20.85215646]
[1770230497754,151.2081,92.793,92.63,20.85215646]
[1770230497755,151.2254,92.782,92.631,0.39294145]
[1770230498049,151.2342,92.777,92.65,20.85215646]
[1770230498247,151.2751,92.752,92.65,20.85215646]
[1770230498443,151.2629,92.759,92.631,0.39294145]
[1770230498750,19.5459478,92.8,92.62,20.85215646]
[1770230498751,151.2798,92.749,92.62,20.85215646]
[1770230498951,151.2327,92.778,92.621,0.30265187]
[1770230499258,151.2516,92.766,92.621,0.30265187]
[1770230499554,9.7279,92.722,92.621,0.30265187]
[1770230499750,3.8399372,92.721,92.624,9.7381]
[1770230500146,9.7296,92.706,92.621,0.30265187]
[1770230500349,3.8399372,92.721,92.594,0.30265187]
[1770230500752,3.88480872,92.691,92.596,9.7411]
[1770230501454,9.7319,92.684,92.596,9.7411]
[1770230501650,3.88480872,92.691,92.59,20.85215646]
[1770230502156,13.61830872,92.669,92.59,20.85215646]
[1770230502355,4.00076344,92.668,92.568,0.21290882]
[1770230502751,4.00076344,92.668,92.513,151.6633]
[1770230502945,4.00076344,92.668,92.54,20.85215646]
[1770230503146,4.00076344,92.668,92.57,20.85215646]
[1770230503349,170.8324478,92.745,92.57,20.85215646]
[1770230503350,9.7322,92.681,92.57,20.85215646]
[1770230504550,9.7349,92.656,92.514,151.6627]
[1770230504753,4.02057066,92.655,92.55,20.85215646]
[1770230505247,4.02057066,92.655,92.564,9.7444]
[1770230505454,4.02057066,92.655,92.55,20.85215646]
[1770230506357,4.02663492,92.652,92.55,20.85215646]
[1770230506951,9.7378,92.628,92.55,20.85215646]
[1770230507159,4.02663492,92.627,92.55,20.85215646]
[1770230507959,9.7367,92.638,92.55,20.85215646]
[1770230508255,4.02663492,92.637,92.55,20.85215646]
[1770230508451,4.02663492,92.637,92.472,29.24049451]
[1770230508452,4.02663492,92.637,92.54,31.34494225]
[1770230509055,4.02663492,92.637,92.51,31.34494225]
[1770230509655,4.02663492,92.637,92.54,31.34494225]
[1770230510852,4.02663492,92.637,92.565,9.7443]
[1770230511050,4.02663492,92.637,92.541,0.0491351]
[1770230511460,9.737,92.635,92.563,9.7445]
[1770230511657,3.96669558,92.634,92.563,9.7445]
[1770230512259,9.7372,92.633,92.551,9.7458]
[1770230512457,3.96669558,92.634,92.551,9.7458]
[1770230512861,19.99853162,92.669,92.541,9.7468]
[1770230512862,3.95937735,92.612,92.541,9.7468]
[1770230513357,3.95937735,92.612,92.512,0.06377156]
[1770230513862,9.742,92.588,92.513,9.7498]
[1770230514063,3.95941817,92.589,92.512,0.06377156]
[1770230515565,9.7428,92.58,92.512,0.06377156]
[1770230515756,3.95941817,92.589,92.448,19.5133]
[1770230515757,3.95941817,92.589,92.487,0.06891735]
[1770230516261,3.95941817,92.589,92.448,19.5133]
[1770230516262,19.99853162,92.662,92.525,0.06891735]
[1770230516454,3.95578483,92.661,92.57,31.34494225]
[1770230517167,3.95578483,92.661,92.581,0.07225243]
[1770230517365,3.95578483,92.661,92.589,9.7418]
[1770230517567,3.95578483,92.687,92.589,0.07225243]
[1770230518362,3.94372826,92.712,92.611,0.09636558]
[1770230518569,3.94372826,92.712,92.631,0.09806783]
[1770230518866,3.94372826,92.712,92.579,151.5548]
[1770230518867,3.94378169,92.776,92.641,0.09806783]
[1770230519363,3.94378169,92.738,92.641,0.09806783]
[1770230519562,3.94378169,92.805,92.67,31.34494225]
[1770230519961,151.1703,92.816,92.665,0.09806783]
[1770230519962,3.94378169,92.757,92.665,0.09806783]
[1770230520156,3.94378169,92.757,92.64,31.44301008]
[1770230520359,3.89870709,92.733,92.648,9.7355]
[1770230520561,3.89870709,92.733,92.641,0.36121372]
[1770230521060,9.7271,92.73,92.641,0.36121372]
[1770230521267,3.89870709,92.733,92.641,0.36121372]
[1770230521566,3.89870709,92.733,92.656,9.7347]
[1770230521861,3.89870709,92.758,92.671,0.36121372]
[1770230522062,3.89870709,92.824,92.738,0.36121372]
[1770230522265,3.89870709,92.895,92.738,0.36121372]
[1770230522469,3.89870709,92.89,92.738,0.36121372]
[1770230522767,3.89870709,92.847,92.738,0.36121372]
[1770230523170,9.7169,92.827,92.738,0.36121372]
[1770230523861,9.7173,92.823,92.739,9.726]
[1770230524259,9.7173,92.823,92.666,9.73239451]
[1770230524260,3.89870709,92.822,92.7,31.34494225]
[1770230524464,3.89870709,92.773,92.691,0.26946221]
[1770230524763,3.89870709,92.763,92.625,0.19319452]
[1770230524965,3.89870709,92.726,92.625,0.19319452]
[1770230525166,3.89870709,92.726,92.597,0.19319452]
[1770230525370,9.7324,92.679,92.581,0.19319452]
[1770230525572,3.89870709,92.685,92.581,0.19319452]
[1770230525967,9.732,92.683,92.597,9.7409]
[1770230526167,3.89870709,92.685,92.581,0.19319452]
[1770230527175,9.7331,92.672,92.581,9.93579452]
[1770230527472,3.89870709,92.685,92.581,0.19319452]
[1770230528169,9.7349,92.655,92.581,0.19319452]
[1770230528472,3.89870709,92.685,92.581,0.19319452]
[1770230529270,3.89870709,92.747,92.596,0.58406529]
[1770230529466,3.89870709,92.747,92.611,0.58406529]
[1770230529670,3.89870709,92.747,92.641,0.58406529]
[1770230529869,9.7257,92.742,92.647,9.7357]
[1770230530271,3.89870709,92.747,92.648,0.69774426]
[1770230530571,3.89870709,92.812,92.671,0.69774426]
[1770230530964,9.7225,92.773,92.685,9.7317]
[1770230531171,3.89870709,92.772,92.671,0.69774426]
[1770230531677,3.89870709,92.772,92.657,9.7346]
[1770230532075,3.89870709,92.802,92.683,0.69774426]
[1770230532277,3.89870709,92.802,92.7,31.34494225]
[1770230532472,3.89870709,92.802,92.688,9.7313]
[1770230532473,9.7218,92.78,92.688,9.7313]
[1770230532767,3.89870709,92.779,92.683,0.69774426]
[1770230532973,3.89870709,92.779,92.673,0.59767434]
[1770230533470,3.89870709,92.772,92.673,10.33057434]
[1770230533875,3.89870709,92.772,92.641,0.59767434]
[1770230534068,13.62440709,92.743,92.641,0.59767434]
[1770230534276,3.89870709,92.743,92.641,0.59767434]
[1770230534672,9.7271,92.729,92.647,9.7356]
[1770230535167,3.89870709,92.741,92.659,9.7344]
[1770230535472,3.89870709,92.741,92.641,0.59767434]
[1770230535974,9.7272,92.728,92.641,0.59767434]
[1770230536571,9.7272,92.728,92.61,31.34494225]
[1770230536572,3.89870709,92.719,92.613,0.83864788]
[1770230537069,9.7311,92.692,92.613,0.83864788]
[1770230537580,9.7311,92.692,92.54,19.4938]
[1770230537581,9.7334,92.669,92.591,9.7416]
[1770230537877,3.89870709,92.678,92.587,0.83864788]
[1770230538273,3.89870709,92.707,92.603,0.83864788]
[1770230538674,9.7299,92.703,92.626,9.7378]
[1770230538972,3.89870709,92.707,92.626,9.7378]
[1770230539374,3.89870709,92.733,92.627,0.84141534]
[1770230539774,9.7268,92.732,92.627,0.84141534]
[1770230539976,13.62550709,92.732,92.627,0.84141534]
[1770230540173,3.89870709,92.731,92.646,9.7358]
[1770230540370,3.89870709,92.731,92.627,0.84141534]
[1770230541170,3.89870709,92.753,92.658,9.7345]
[1770230541376,3.89870709,92.753,92.652,0.83878833]
[1770230541583,3.89870709,92.721,92.611,0.83878833]
[1770230542677,3.89870709,92.708,92.632,9.7372]
[1770230542877,3.89870709,92.708,92.611,0.83878833]
[1770230543078,9.7318,92.684,92.611,0.83878833]
[1770230543275,9.7318,92.684,92.544,19.493]
[1770230543276,3.89870709,92.683,92.581,0.78978416]
[1770230543478,3.89870709,92.683,92.589,9.7418]
[1770230543670,3.92472298,92.709,92.59,0.78629218]
[1770230544177,3.92472298,92.709,92.516,9.96153228]
[1770230544178,3.92472298,92.699,92.564,0.78629218]
[1770230544374,3.92472298,92.699,92.491,9.96153228]
[1770230544375,3.92472298,92.639,92.537,0.78403691]
[1770230544570,3.92472298,92.639,92.539,9.747]
[1770230545082,3.92472298,92.622,92.511,0.78403691]
[1770230545379,3.92472298,92.622,92.485,0.78403691]
[1770230545582,3.92472298,92.586,92.485,0.78403691]
[1770230546683,3.92472298,92.57,92.458,0.79023241]
[1770230546980,3.92472298,92.57,92.42,31.34494225]
[1770230546981,3.92472298,92.567,92.428,0.79023241]
[1770230547178,3.92472298,92.567,92.378,151.8856]
[1770230547179,3.92472298,92.522,92.391,0.79023241]
[1770230547570,9.7541,92.473,92.391,0.79023241]
[1770230547775,9.7541,92.473,92.309,9.96153228]
[1770230547776,3.92472298,92.472,92.353,9.7667]
[1770230547980,3.92472298,92.472,92.351,0.79023241]
[1770230548281,3.92472298,92.472,92.294,171.5701]
[1770230548282,3.92472298,92.496,92.405,9.7611]
[1770230548477,3.92472298,92.496,92.391,0.88509547]
[1770230548879,3.92472298,92.496,92.395,10.64729547]
[1770230549080,3.92472298,92.496,92.396,0.88509547]
[1770230549381,3.92472298,92.549,92.445,9.757]
[1770230549578,3.92472298,92.549,92.446,0.88509547]
[1770230549981,3.92472298,92.549,92.468,9.7545]
[1770230550176,3.92472298,92.549,92.451,0.88509547]
[1770230550382,3.92472298,92.597,92.451,0.88509547]
[1770230550580,3.92472298,92.597,92.482,9.753]
[1770230550782,3.92472298,92.597,92.457,1.08807989]
[1770230551177,3.92472298,92.597,92.482,9.753]
[1770230551383,3.92472298,92.597,92.465,1.08807989]
[1770230551677,3.92472298,92.597,92.496,9.7516]
[1770230551884,3.92472298,92.597,92.471,1.08807989]
[1770230552376,3.92472298,92.597,92.511,9.75]
[1770230553577,3.92472298,92.645,92.525,9.7485]
[1770230553781,3.92472298,92.645,92.507,1.08784965]
[1770230554088,19.4568,92.717,92.5,31.34494225]
[1770230554089,3.92472298,92.673,92.567,1.08784965]
[1770230554283,3.92472298,92.673,92.539,1.0794029]
[1770230554673,3.92472298,92.654,92.556,9.7452]
[1770230555083,3.92472298,92.652,92.556,9.7452]
[1770230555284,3.92472298,92.652,92.572,9.7436]
[1770230555578,3.92472298,92.685,92.567,1.0794029]
[1770230555779,3.92472298,92.685,92.586,9.742]
[1770230556473,3.92472298,92.685,92.577,1.07638595]
[1770230556674,3.92472298,92.714,92.591,1.07638595]
[1770230556877,3.92472298,92.714,92.598,1.07638595]
[1770230557074,3.92472298,92.742,92.621,1.07638595]